[Event "EYCC Open-U14 2019"]
[Site "Bratislava"]
[Date "2019.08.07"]
[Round "6.8"]
[White "Razafindratsima, Timothe"]
[Black "Chyzy, Jakub"]
[Result "0-1"]
[ECO "C70"]
[WhiteElo "2178"]
[BlackElo "2093"]
[Annotator "NA"]
[PlyCount "152"]
[EventDate "2019.08.02"]
[EventType "swiss"]
[EventCountry "SVK"]
[SourceTitle "playchess.com"]
[Source "ChessBase"]
[SourceQuality "1"]
[TimeControl "40/5400+30:1800+30"]

1. e4 {[%emt 0:00:00]} e5 {[%emt 0:00:00]} 2. Nf3 {[%emt 0:00:00]} Nc6 {[%emt 0:00:00]} 3. Bb5 {[%emt 0:00:00]} a6 {[%emt 0:00:00]} 4. Ba4 {[%emt 0:00:00]} Nge7 {[%emt 0:00:00]} 5. O-O {[%emt 0:00:00]} g6 {[%emt 0:00:00]} 6. c3 {[%emt 0:00:01]} Bg7 {[%emt 0:00:00]} 7. d4 {[%emt 0:00:04]} exd4 {[%emt 0:00:06]} 8. cxd4 {[%emt 0:00:05]} b5 {[%emt 0:00:10]} 9. Bc2 {[%emt 0:00:04]} O-O {[%emt 0:00:09]} 10. d5 {[%emt 0:00:04]} Na5 {[%emt 0:00:13]} 11. Bd2 {[%emt 0:00:27]} Nc4 {[%emt 0:21:02]} 12. Bc3 {[%emt 0:00:04]} Nxb2 {[%emt 0:00:43]} 13. Qc1 {[%emt 0:00:05]} Nc4 {[%emt 0:00:21]} 14. Bxg7 {[%emt 0:00:05]} Kxg7 {[%emt 0:00:05]} 15. Bb3 {[%emt 0:00:05]} Nb6 {[%emt 0:02:57]} 16. Nbd2 {[%emt 0:00:15]} d6 {[%emt 0:01:15]} 17. Qc3+ {[%emt 0:00:05]} Kg8 {[%emt 0:00:38]} 18. Rac1 {[%emt 0:00:10]} Ra7 {[%emt 0:04:00]} 19. Nd4 {[%emt 0:00:23]} Nd7 {[%emt 0:21:54]} 20. a4 {[%emt 0:05:42]} bxa4 {[%emt 0:01:43]} 21. Bxa4 {[%emt 0:00:06]} Nc5 {[%emt 0:00:33]} 22. Bc6 {[%emt 0:00:09]} Bd7 {[%emt 0:01:35]} 23. Qe3 {[%emt 0:03:34]} Bxc6 {[%emt 0:09:34]} 24. dxc6 {[%emt 0:00:18]} Qe8 {[%emt 0:08:01]} 25. Qh6 {[%emt 0:03:48]} f6 {[%emt 0:16:05]} 26. Rc3 {[%emt 0:08:47]} Qf7 {[%emt 0:08:12]} 27. Ra1 {[%emt 0:02:32]} Raa8 {[%emt 0:00:46]} 28. N2b3 {[%emt 0:04:59]} Nxb3 {[%emt 0:03:11]} 29. Rxb3 {[%emt 0:00:14]} Rab8 {[%emt 0:00:27]} 30. Rc3 {[%emt 0:07:46]} Rb4 {[%emt 0:00:16]} 31. Qe3 {[%emt 0:00:20]} Rfb8 {[%emt 0:00:16]} 32. h4 {[%emt 0:00:19]} f5 {[%emt 0:01:07]} 33. Rd1 {[%emt 0:16:22]} f4 {[%emt 0:00:36]} 34. Qh3 {[%emt 0:00:41]} Qf6 {[%emt 0:00:25]} 35. Qe6+ {[%emt 0:00:12]} Kg7 {[%emt 0:00:32]} 36. h5 {[%emt 0:00:26]} g5 {[%emt 0:00:33]} 37. Qd7 {[%emt 0:01:37]} Rxd4 {[%emt 0:00:29]} 38. Rxd4 {[%emt 0:00:05]} Qxd4 {[%emt 0:00:21]} 39. Qxe7+ {[%emt 0:00:06]} Kh8 {[%emt 0:00:09]} 40. Rc1 {[%emt 0:00:00]} Qg7 {[%emt 0:00:00]} 41. Qe6 {[%emt 0:01:12]} g4 {[%emt 0:09:57]} 42. h6 {[%emt 0:00:33]} Qg5 {[%emt 0:01:09]} 43. Qd5 {[%emt 0:15:37]} Qxh6 {[%emt 0:09:09]} 44. Qd4+ {[%emt 0:00:09]} Qg7 {[%emt 0:01:14]} 45. Qa7 {[%emt 0:02:06]} Qb2 {[%emt 0:00:48]} 46. Rd1 {[%emt 0:02:27]} Qb6 {[%emt 0:01:26]} 47. Qxb6 {[%emt 0:00:05]} Rxb6 {[%emt 0:00:06]} 48. e5 {[%emt 0:00:09]} Rxc6 {[%emt 0:02:27]} 49. e6 {[%emt 0:00:30]} Kg7 {[%emt 0:00:13]} 50. Rd4 {[%emt 0:00:10]} g3 {[%emt 0:00:51]} 51. fxg3 {[%emt 0:00:10]} fxg3 {[%emt 0:00:09]} 52. Rg4+ {[%emt 0:00:10]} Kf6 {[%emt 0:00:08]} 53. Rxg3 {[%emt 0:00:04]} Kxe6 {[%emt 0:00:53]} 54. Rh3 {[%emt 0:00:06]} a5 {[%emt 0:00:10]} 55. Rxh7 {[%emt 0:00:04]} a4 {[%emt 0:00:33]} 56. Rh4 {[%emt 0:00:26]} Ra6 {[%emt 0:00:07]} 57. Re4+ {[%emt 0:00:05]} Kf5 {[%emt 0:00:06]} 58. Re2 {[%emt 0:00:16]} a3 {[%emt 0:00:04]} 59. Ra2 {[%emt 0:00:06]} Ke4 {[%emt 0:01:05]} 60. Kf2 c5 {[%emt 0:00:45]} 61. Ke2 {[%emt 0:00:57]} d5 {[%emt 0:00:08]} 62. Kd2 {[%emt 0:00:11]} d4 {[%emt 0:00:08]} 63. g4 {[%emt 0:00:33]} c4 {[%emt 0:00:06]} 64. g5 {[%emt 0:00:06]} Kf5 {[%emt 0:00:09]} 65. Kc1 {[%emt 0:00:15]} Kxg5 {[%emt 0:00:09]} 66. Kb1 {[%emt 0:00:04]} Kf4 {[%emt 0:00:07]} 67. Ka1 {[%emt 0:00:04]} Ke3 {[%emt 0:00:08]} 68. Rh2 {[%emt 0:00:17]} d3 {[%emt 0:00:13]} 69. Rh3+ {[%emt 0:00:10]} Kd2 {[%emt 0:00:06]} 70. Rh2+ {[%emt 0:00:05]} Kc1 {[%emt 0:00:08]} 71. Rh1+ {[%emt 0:01:15]} Kc2 {[%emt 0:00:07]} 72. Ka2 {[%emt 0:00:01]} d2 {[%emt 0:00:13]} 73. Rh3 {[%emt 0:00:17]} d1=Q {[%emt 0:03:47]} 74. Rc3+ {[%emt 0:00:06]} Kd2 75. Rd3+ {[%emt 0:00:09]} Ke1 {[%emt 0:00:09]} 76. Rd2 {[%emt 0:00:59]} Qxd2+ {[%emt 0:00:05]} 0-1

[Event "EYCC Open-U14 2019"]
[Site "Bratislava"]
[Date "2019.08.07"]
[Round "6.9"]
[White "Biletskiy, Danylo"]
[Black "Tsaruk, Maksim"]
[Result "1-0"]
[ECO "A05"]
[WhiteElo "2105"]
[BlackElo "2230"]
[Annotator "NA"]
[PlyCount "115"]
[EventDate "2019.08.02"]
[EventType "swiss"]
[EventCountry "SVK"]
[SourceTitle "playchess.com"]
[Source "ChessBase"]
[SourceQuality "1"]
[TimeControl "40/5400+30:1800+30"]

1. Nf3 {[%emt 0:00:00]} Nf6 {[%emt 0:00:00]} 2. c4 {[%emt 0:00:00]} b6 {[%emt 0:00:03]} 3. g3 {[%emt 0:00:00]} Bb7 {[%emt 0:00:06]} 4. Bg2 {[%emt 0:00:00]} g6 {[%emt 0:00:06]} 5. O-O {[%emt 0:00:04]} Bg7 {[%emt 0:00:05]} 6. d4 {[%emt 0:00:16]} O-O {[%emt 0:00:20]} 7. d5 {[%emt 0:00:12]} e6 {[%emt 0:08:53]} 8. Nc3 {[%emt 0:03:06]} exd5 {[%emt 0:00:53]} 9. cxd5 {[%emt 0:00:31]} d6 {[%emt 0:00:53]} 10. e4 {[%emt 0:04:25]} Re8 {[%emt 0:00:26]} 11. Nd4 {[%emt 0:01:51]} Qd7 {[%emt 0:04:49]} 12. f4 {[%emt 0:08:54]} c5 {[%emt 0:16:20]} 13. dxc6 {[%emt 0:06:53]} Nxc6 {[%emt 0:00:07]} 14. Nc2 {[%emt 0:13:58]} Rad8 {[%emt 0:16:17]} 15. f5 {[%emt 0:18:21]} Ne5 {[%emt 0:15:21]} 16. fxg6 {[%emt 0:05:52]} fxg6 {[%emt 0:00:43]} 17. Bg5 {[%emt 0:00:11]} Rf8 {[%emt 0:07:30]} 18. Nd5 {[%emt 0:16:47]} Nxd5 {[%emt 0:09:46]} 19. Bxd8 {[%emt 0:00:56]} Rxd8 {[%emt 0:00:01]} 20. exd5 {[%emt 0:00:10]} Qb5 {[%emt 0:00:00]} 21. Nd4 {[%emt 0:01:53]} Qxb2 {[%emt 0:00:09]} 22. Ne6 {[%emt 0:00:54]} Re8 {[%emt 0:00:05]} 23. Qb3 {[%emt 0:01:37]} Qd2 {[%emt 0:02:31]} 24. Rad1 {[%emt 0:00:40]} Qe2 {[%emt 0:01:00]} 25. Nxg7 {[%emt 0:03:50]} Kxg7 {[%emt 0:00:01]} 26. Qa4 {[%emt 0:00:53]} Re7 {[%emt 0:05:09]} 27. Rde1 {[%emt 0:02:11]} Qb2 {[%emt 0:10:26]} 28. Qh4 {[%emt 0:01:23]} Re8 {[%emt 0:00:00]} 29. Qf6+ {[%emt 0:00:21]} Kg8 {[%emt 0:00:01]} 30. Rxe5 {[%emt 0:00:50]} Qxe5 {[%emt 0:00:32]} 31. Qf7+ {[%emt 0:00:01]} Kh8 {[%emt 0:00:07]} 32. Qxb7 {[%emt 0:00:08]} h5 {[%emt 0:01:06]} 33. Qf7 {[%emt 0:00:32]} Qd4+ {[%emt 0:00:41]} 34. Kh1 {[%emt 0:00:32]} Rg8 {[%emt 0:00:28]} 35. Qxa7 {[%emt 0:03:07]} h4 {[%emt 0:00:16]} 36. Qe7 {[%emt 0:02:00]} hxg3 {[%emt 0:00:05]} 37. Qf6+ {[%emt 0:00:27]} Qxf6 {[%emt 0:00:04]} 38. Rxf6 {[%emt 0:00:01]} gxh2 {[%emt 0:00:11]} 39. Rxd6 {[%emt 0:00:07]} Ra8 {[%emt 0:00:06]} 40. Rxg6 {[%emt 0:00:00]} b5 {[%emt 0:00:00]} 41. Rb6 {[%emt 0:00:26]} Rxa2 {[%emt 0:00:30]} 42. Rxb5 {[%emt 0:00:07]} Kg7 {[%emt 0:00:05]} 43. Rb6 {[%emt 0:00:11]} Kf7 {[%emt 0:00:24]} 44. Kxh2 {[%emt 0:00:02]} Ke7 {[%emt 0:00:07]} 45. Kg3 {[%emt 0:00:06]} Ra3+ {[%emt 0:00:05]} 46. Kf4 {[%emt 0:00:10]} Kd7 {[%emt 0:00:45]} 47. Ke5 {[%emt 0:00:13]} Re3+ {[%emt 0:00:09]} 48. Be4 {[%emt 0:00:02]} Kc7 {[%emt 0:00:07]} 49. Rc6+ {[%emt 0:00:11]} Kd7 {[%emt 0:00:05]} 50. Rh6 {[%emt 0:00:11]} Re1 {[%emt 0:00:06]} 51. Rh7+ {[%emt 0:00:04]} Kc8 {[%emt 0:00:04]} 52. d6 {[%emt 0:00:06]} Kd8 {[%emt 0:00:09]} 53. Kd5 {[%emt 0:00:04]} Re2 {[%emt 0:01:14]} 54. Bf5 {[%emt 0:00:12]} Rd2+ {[%emt 0:00:03]} 55. Ke6 {[%emt 0:00:05]} Re2+ {[%emt 0:00:05]} 56. Kf6 {[%emt 0:00:05]} Re8 {[%emt 0:00:29]} 57. Rd7+ {[%emt 0:00:02]} Kc8 {[%emt 0:00:05]} 58. Re7+ {[%emt 0:00:09]} 1-0

[Event "EYCC Open-U14 2019"]
[Site "Bratislava"]
[Date "2019.08.07"]
[Round "6.10"]
[White "Sahakyan, Aleks"]
[Black "Can, Isik"]
[Result "0-1"]
[ECO "B12"]
[WhiteElo "1856"]
[BlackElo "2374"]
[Annotator "NA"]
[PlyCount "52"]
[EventDate "2019.08.02"]
[EventType "swiss"]
[EventCountry "SVK"]
[SourceTitle "playchess.com"]
[Source "ChessBase"]
[SourceQuality "1"]
[TimeControl "40/5400+30:1800+30"]

1. e4 {[%emt 0:00:00]} c6 {[%emt 0:00:00]} 2. d4 {[%emt 0:00:00]} d5 {[%emt 0:00:00]} 3. e5 {[%emt 0:00:00]} Bf5 {[%emt 0:00:00]} 4. Ne2 {[%emt 0:00:15]} e6 {[%emt 0:01:00]} 5. Ng3 {[%emt 0:00:06]} Bg6 {[%emt 0:02:44]} 6. h4 {[%emt 0:00:10]} h5 {[%emt 0:02:36]} 7. Be2 {[%emt 0:01:40]} c5 {[%emt 0:00:45]} 8. dxc5 {[%emt 0:00:53]} Nc6 {[%emt 0:18:44]} 9. Nd2 {[%emt 0:09:45]} Nxe5 {[%emt 0:12:54]} 10. Nb3 {[%emt 0:04:52]} Nf6 {[%emt 0:02:00]} 11. Bg5 {[%emt 0:07:35]} Bxc5 {[%emt 0:09:25]} 12. f4 {[%emt 0:09:11]} Ned7 {[%emt 0:02:28]} 13. f5 {[%emt 0:01:18]} exf5 {[%emt 0:05:09]} 14. Nxc5 {[%emt 0:00:58]} Qa5+ {[%emt 0:01:23]} 15. Qd2 {[%emt 0:06:25]} Qxc5 {[%emt 0:00:18]} 16. Be3 {[%emt 0:01:06]} Qd6 {[%emt 0:03:04]} 17. Bf4 {[%emt 0:00:21]} Qb6 {[%emt 0:00:01]} 18. O-O-O {[%emt 0:04:26]} O-O {[%emt 0:00:08]} 19. Bg5 {[%emt 0:04:44]} Rac8 {[%emt 0:07:35]} 20. Bd3 {[%emt 0:04:02]} Ne4 {[%emt 0:06:33]} 21. Bxe4 {[%emt 0:01:24]} fxe4 {[%emt 0:00:02]} 22. Qxd5 {[%emt 0:03:30]} Qf2 {[%emt 0:04:07]} 23. Rd2 {[%emt 0:01:08]} Qxg3 {[%emt 0:00:02]} 24. Qxd7 {[%emt 0:00:11]} e3 {[%emt 0:00:02]} 25. Re2 {[%emt 0:00:01]} Bxc2 {[%emt 0:00:07]} 26. Rxe3 {[%emt 0:01:52]} Bf5+ 0-1

[Event "EYCC Open-U14 2019"]
[Site "Bratislava"]
[Date "2019.08.07"]
[Round "6.11"]
[White "Oglaza, Oskar"]
[Black "Kusa, Jakub"]
[Result "1-0"]
[ECO "B17"]
[WhiteElo "2345"]
[BlackElo "2199"]
[Annotator "NA"]
[PlyCount "83"]
[EventDate "2019.08.02"]
[EventType "swiss"]
[EventCountry "SVK"]
[SourceTitle "playchess.com"]
[Source "ChessBase"]
[SourceQuality "1"]
[TimeControl "40/5400+30:1800+30"]

1. e4 {[%emt 0:00:00]} c6 {[%emt 0:00:00]} 2. d4 {[%emt 0:00:00]} d5 {[%emt 0:00:00]} 3. Nc3 {[%emt 0:00:00]} dxe4 {[%emt 0:00:07]} 4. Nxe4 {[%emt 0:00:00]} Nd7 {[%emt 0:00:12]} 5. Nf3 {[%emt 0:00:20]} Ngf6 {[%emt 0:00:27]} 6. Ned2 {[%emt 0:00:14]} e6 {[%emt 0:02:57]} 7. g3 {[%emt 0:00:43]} b6 {[%emt 0:01:22]} 8. Bg2 {[%emt 0:00:13]} Bb7 {[%emt 0:00:28]} 9. O-O {[%emt 0:01:22]} Be7 {[%emt 0:03:35]} 10. Re1 {[%emt 0:08:51]} O-O {[%emt 0:02:30]} 11. Ne5 {[%emt 0:12:17]} Qc7 {[%emt 0:03:39]} 12. Ndc4 {[%emt 0:04:59]} b5 {[%emt 0:16:28]} 13. Nxd7 {[%emt 0:00:58]} Qxd7 {[%emt 0:02:50]} 14. Ne5 {[%emt 0:05:42]} Qc7 {[%emt 0:01:52]} 15. Bf4 {[%emt 0:08:53]} Bd6 {[%emt 0:04:18]} 16. c3 {[%emt 0:02:00]} a5 {[%emt 0:06:39]} 17. Qe2 {[%emt 0:12:43]} Nd7 {[%emt 0:05:57]} 18. Nxd7 {[%emt 0:10:07]} Qxd7 {[%emt 0:00:42]} 19. Bxd6 {[%emt 0:00:48]} Qxd6 {[%emt 0:00:12]} 20. Qe5 {[%emt 0:00:02]} Rfd8 {[%emt 0:00:59]} 21. a4 {[%emt 0:03:15]} b4 {[%emt 0:01:18]} 22. f4 {[%emt 0:02:51]} Bc8 {[%emt 0:06:00]} 23. Qxd6 {[%emt 0:01:20]} Rxd6 {[%emt 0:00:08]} 24. Re5 {[%emt 0:00:01]} Kf8 {[%emt 0:03:03]} 25. Rc5 {[%emt 0:00:28]} Bd7 {[%emt 0:00:57]} 26. Kf2 {[%emt 0:06:55]} Ke7 {[%emt 0:01:44]} 27. Ke3 {[%emt 0:00:44]} Be8 {[%emt 0:02:29]} 28. cxb4 {[%emt 0:02:26]} axb4 {[%emt 0:00:26]} 29. Rc4 {[%emt 0:03:09]} Ra5 {[%emt 0:01:58]} 30. b3 {[%emt 0:01:24]} f6 {[%emt 0:01:24]} 31. Rac1 {[%emt 0:02:33]} e5 {[%emt 0:01:12]} 32. dxe5 {[%emt 0:02:09]} fxe5 {[%emt 0:00:21]} 33. Rxb4 {[%emt 0:01:05]} exf4+ {[%emt 0:01:50]} 34. gxf4 {[%emt 0:03:01]} c5 {[%emt 0:00:49]} 35. Rb7+ {[%emt 0:00:23]} Kf6 {[%emt 0:00:43]} 36. Be4 {[%emt 0:00:49]} h6 {[%emt 0:05:58]} 37. Rc7 {[%emt 0:00:11]} Bf7 {[%emt 0:01:58]} 38. R1xc5 {[%emt 0:01:07]} Rxc5 {[%emt 0:00:15]} 39. Rxc5 {[%emt 0:00:03]} Bxb3 {[%emt 0:00:18]} 40. a5 {[%emt 0:00:00]} Ba4 {[%emt 0:00:00]} 41. Bb7 {[%emt 0:00:58]} Rd7 {[%emt 0:03:00]} 42. a6 {[%emt 0:00:15]} 1-0

[Event "EYCC Open-U14 2019"]
[Site "Bratislava"]
[Date "2019.08.07"]
[Round "6.12"]
[White "Guz, Ari"]
[Black "Morgunov, Marc"]
[Result "1/2-1/2"]
[ECO "E63"]
[WhiteElo "2165"]
[BlackElo "2314"]
[Annotator "NA"]
[PlyCount "53"]
[EventDate "2019.08.02"]
[EventType "swiss"]
[EventCountry "SVK"]
[SourceTitle "playchess.com"]
[Source "ChessBase"]
[SourceQuality "1"]
[TimeControl "40/5400+30:1800+30"]

1. c4 {[%emt 0:00:00]} Nf6 {[%emt 0:00:00]} 2. Nc3 {[%emt 0:00:00]} g6 {[%emt 0:00:00]} 3. g3 {[%emt 0:00:00]} Bg7 {[%emt 0:00:00]} 4. Bg2 {[%emt 0:00:06]} d6 {[%emt 0:00:00]} 5. d4 {[%emt 0:00:07]} O-O {[%emt 0:00:06]} 6. Nf3 {[%emt 0:00:05]} Nc6 {[%emt 0:00:04]} 7. O-O {[%emt 0:00:08]} a6 {[%emt 0:00:03]} 8. b3 {[%emt 0:14:46]} Rb8 {[%emt 0:06:20]} 9. d5 {[%emt 0:21:17]} Na5 {[%emt 0:16:54]} 10. Bd2 {[%emt 0:03:46]} c5 {[%emt 0:06:56]} 11. dxc6 {[%emt 0:00:09]} Nxc6 {[%emt 0:00:09]} 12. Rc1 {[%emt 0:00:15]} Bd7 {[%emt 0:02:30]} 13. Nd5 {[%emt 0:07:35]} b5 {[%emt 0:15:50]} 14. Bc3 {[%emt 0:02:13]} Ne8 {[%emt 0:14:00]} 15. Qd2 {[%emt 0:05:53]} e5 {[%emt 0:03:10]} 16. cxb5 {[%emt 0:01:05]} Rxb5 {[%emt 0:00:10]} 17. Ne3 {[%emt 0:09:35]} Qb8 {[%emt 0:04:35]} 18. Bb2 {[%emt 0:02:51]} Nf6 {[%emt 0:01:45]} 19. Ng5 {[%emt 0:07:06]} Nd4 {[%emt 0:10:18]} 20. Bxd4 {[%emt 0:05:57]} exd4 {[%emt 0:00:06]} 21. Nc2 {[%emt 0:00:07]} Qb6 {[%emt 0:01:56]} 22. h4 {[%emt 0:01:37]} Ng4 {[%emt 0:01:58]} 23. Rcd1 {[%emt 0:00:49]} Ra5 {[%emt 0:10:25]} 24. Nxd4 {[%emt 0:02:00]} Bxd4 {[%emt 0:00:27]} 25. Qxd4 {[%emt 0:00:16]} Qxd4 {[%emt 0:00:22]} 26. Rxd4 {[%emt 0:00:19]} Rxa2 {[%emt 0:00:32]} 27. Rxd6 {[%emt 0:02:06]} 1/2-1/2

[Event "EYCC Open-U14 2019"]
[Site "Bratislava"]
[Date "2019.08.07"]
[Round "6.13"]
[White "Pozzari, Simone"]
[Black "Kirillov, Dmitry"]
[Result "0-1"]
[ECO "D00"]
[WhiteElo "2179"]
[BlackElo "2244"]
[Annotator "NA"]
[PlyCount "74"]
[EventDate "2019.08.02"]
[EventType "swiss"]
[EventCountry "SVK"]
[SourceTitle "playchess.com"]
[Source "ChessBase"]
[SourceQuality "1"]
[TimeControl "40/5400+30:1800+30"]

1. d4 {[%emt 0:00:00]} d5 {[%emt 0:00:00]} 2. Bf4 Nf6 {[%emt 0:00:00]} 3. e3 {[%emt 0:00:00]} e6 {[%emt 0:00:00]} 4. Nd2 {[%emt 0:00:00]} c5 {[%emt 0:00:00]} 5. c3 {[%emt 0:00:00]} Nc6 {[%emt 0:00:00]} 6. Ngf3 {[%emt 0:00:03]} Bd6 {[%emt 0:00:08]} 7. Bg3 {[%emt 0:00:06]} O-O {[%emt 0:00:05]} 8. Bb5 {[%emt 0:00:04]} Ne7 {[%emt 0:17:12]} 9. Bd3 {[%emt 0:00:34]} b6 {[%emt 0:01:07]} 10. e4 {[%emt 0:02:16]} dxe4 {[%emt 0:21:06]} 11. Nxe4 {[%emt 0:00:06]} Nxe4 {[%emt 0:00:21]} 12. Bxe4 {[%emt 0:00:06]} Rb8 {[%emt 0:00:03]} 13. dxc5 {[%emt 0:01:32]} Bxg3 {[%emt 0:00:10]} 14. Qxd8 {[%emt 0:06:58]} Rxd8 {[%emt 0:11:08]} 15. hxg3 {[%emt 0:00:08]} bxc5 {[%emt 0:00:19]} 16. Bxh7+ {[%emt 0:04:09]} Kf8 {[%emt 0:00:04]} 17. Bc2 {[%emt 0:00:34]} g6 {[%emt 0:01:27]} 18. b3 {[%emt 0:01:59]} Bb7 {[%emt 0:00:52]} 19. Ng5 {[%emt 0:14:55]} Kg8 {[%emt 0:07:23]} 20. Be4 {[%emt 0:02:11]} c4 {[%emt 0:06:52]} 21. bxc4 {[%emt 0:05:55]} Ba6 {[%emt 0:10:15]} 22. O-O {[%emt 0:25:38]} Bxc4 {[%emt 0:00:08]} 23. Rfd1 {[%emt 0:01:11]} f6 {[%emt 0:05:31]} 24. Rxd8+ {[%emt 0:02:49]} Rxd8 {[%emt 0:00:09]} 25. Nf3 {[%emt 0:00:05]} f5 {[%emt 0:00:50]} 26. Bc2 {[%emt 0:00:28]} Nd5 {[%emt 0:01:30]} 27. Ne5 {[%emt 0:01:17]} Ba6 {[%emt 0:00:13]} 28. c4 {[%emt 0:02:51]} Nc3 {[%emt 0:00:19]} 29. Bb3 {[%emt 0:05:50]} Kg7 {[%emt 0:00:42]} 30. Nc6 {[%emt 0:00:52]} Rd2 {[%emt 0:06:20]} 31. Nxa7 {[%emt 0:13:09]} Ne4 {[%emt 0:00:04]} 32. Rc1 {[%emt 0:08:05]} Rxf2 {[%emt 0:03:06]} 33. c5 {[%emt 0:00:36]} Rd2 {[%emt 0:00:44]} 34. c6 {[%emt 0:00:57]} Nxg3 {[%emt 0:02:08]} 35. Bc4 {[%emt 0:00:01]} Bxc4 {[%emt 0:04:00]} 36. Rxc4 {[%emt 0:00:02]} f4 {[%emt 0:00:05]} 37. c7 {[%emt 0:00:36]} Rd1+ 0-1

[Event "EYCC Open-U14 2019"]
[Site "Bratislava"]
[Date "2019.08.07"]
[Round "6.14"]
[White "Laptii, Nazar"]
[Black "Tadic, Stefan"]
[Result "0-1"]
[ECO "B30"]
[WhiteElo "2133"]
[BlackElo "2262"]
[Annotator "NA"]
[PlyCount "118"]
[EventDate "2019.08.02"]
[EventType "swiss"]
[EventCountry "SVK"]
[SourceTitle "playchess.com"]
[Source "ChessBase"]
[SourceQuality "1"]
[TimeControl "40/5400+30:1800+30"]

1. e4 {[%emt 0:00:00]} c5 {[%emt 0:00:00]} 2. Nf3 {[%emt 0:00:00]} Nc6 {[%emt 0:00:00]} 3. d3 {[%emt 0:00:00]} g6 {[%emt 0:00:22]} 4. g3 {[%emt 0:00:00]} Bg7 {[%emt 0:00:03]} 5. Bg2 {[%emt 0:00:02]} e6 {[%emt 0:01:31]} 6. O-O {[%emt 0:00:08]} d5 {[%emt 0:02:11]} 7. Nbd2 {[%emt 0:01:00]} Nf6 {[%emt 0:00:19]} 8. c3 {[%emt 0:00:30]} O-O {[%emt 0:05:29]} 9. Re1 {[%emt 0:00:10]} a5 {[%emt 0:00:21]} 10. a4 {[%emt 0:00:40]} b6 {[%emt 0:03:29]} 11. exd5 {[%emt 0:00:13]} exd5 {[%emt 0:05:38]} 12. Nb1 {[%emt 0:01:08]} Bf5 {[%emt 0:05:10]} 13. Na3 {[%emt 0:01:24]} Qd7 {[%emt 0:10:41]} 14. Nb5 {[%emt 0:08:28]} Rfe8 {[%emt 0:02:52]} 15. Rxe8+ {[%emt 0:01:05]} Rxe8 {[%emt 0:02:26]} 16. Bf4 {[%emt 0:02:01]} Bh3 {[%emt 0:05:34]} 17. Qd2 {[%emt 0:28:05]} Bxg2 {[%emt 0:06:57]} 18. Kxg2 {[%emt 0:00:12]} d4 {[%emt 0:03:19]} 19. cxd4 {[%emt 0:23:47]} Nxd4 {[%emt 0:03:40]} 20. Nbxd4 {[%emt 0:01:11]} cxd4 {[%emt 0:00:05]} 21. Be5 {[%emt 0:14:09]} Nd5 {[%emt 0:05:27]} 22. Bxg7 {[%emt 0:00:07]} Kxg7 {[%emt 0:00:04]} 23. Rc1 {[%emt 0:00:33]} Qxa4 {[%emt 0:12:57]} 24. Rc4 {[%emt 0:00:05]} Qb5 {[%emt 0:03:17]} 25. Rxd4 {[%emt 0:00:13]} Nb4 {[%emt 0:00:38]} 26. Qc3 {[%emt 0:02:28]} Kg8 {[%emt 0:01:25]} 27. Qd2 {[%emt 0:06:07]} Qc6 {[%emt 0:00:33]} 28. Qh6 {[%emt 0:00:58]} Nc2 {[%emt 0:04:56]} 29. Rh4 {[%emt 0:06:00]} Ne1+ {[%emt 0:00:05]} 30. Kf1 {[%emt 0:00:06]} Nxf3 {[%emt 0:00:24]} 31. Qxh7+ {[%emt 0:01:46]} Kf8 {[%emt 0:00:00]} 32. Qh6+ {[%emt 0:01:03]} Ke7 {[%emt 0:00:02]} 33. Re4+ {[%emt 0:01:47]} Kd8 {[%emt 0:00:52]} 34. Rxe8+ {[%emt 0:00:54]} Qxe8 {[%emt 0:01:55]} 35. Qf4 {[%emt 0:00:10]} Ne5 {[%emt 0:02:22]} 36. d4 {[%emt 0:00:47]} Nd7 {[%emt 0:00:47]} 37. d5 {[%emt 0:00:29]} Qe7 {[%emt 0:01:05]} 38. h4 {[%emt 0:00:37]} Qf6 {[%emt 0:01:17]} 39. Qc1 {[%emt 0:00:35]} Nc5 {[%emt 0:01:24]} 40. Qc2 {[%emt 0:00:00]} Qf3 {[%emt 0:00:00]} 41. Kg1 {[%emt 0:02:03]} Qxd5 {[%emt 0:01:44]} 42. Qc3 {[%emt 0:00:25]} Nd7 {[%emt 0:04:06]} 43. Qc1 {[%emt 0:01:39]} b5 {[%emt 0:01:37]} 44. Qc3 {[%emt 0:01:17]} b4 {[%emt 0:00:09]} 45. Qe1 {[%emt 0:00:10]} Qd4 {[%emt 0:01:58]} 46. Qa1 {[%emt 0:00:21]} Qe5 {[%emt 0:07:12]} 47. Qa4 {[%emt 0:00:12]} Kc7 {[%emt 0:01:21]} 48. Qa2 {[%emt 0:00:16]} f5 {[%emt 0:01:54]} 49. Qc4+ {[%emt 0:01:03]} Kb6 {[%emt 0:02:17]} 50. b3 {[%emt 0:00:39]} Qe1+ {[%emt 0:00:19]} 51. Kh2 {[%emt 0:00:12]} Qxf2+ {[%emt 0:00:05]} 52. Kh3 {[%emt 0:00:04]} Nc5 {[%emt 0:00:44]} 53. Qd5 {[%emt 0:00:37]} Qf1+ {[%emt 0:00:11]} 54. Kh2 {[%emt 0:00:12]} Qe2+ {[%emt 0:00:04]} 55. Kh3 {[%emt 0:00:08]} Qf1+ {[%emt 0:00:51]} 56. Kh2 {[%emt 0:00:08]} Qd3 {[%emt 0:00:07]} 57. Qa8 {[%emt 0:02:23]} Qd6 {[%emt 0:00:20]} 58. Qg8 {[%emt 0:00:20]} Ne4 {[%emt 0:00:07]} 59. Kh1 {[%emt 0:00:51]} Qd1+ {[%emt 0:00:05]} 0-1

[Event "EYCC Open-U14 2019"]
[Site "Bratislava"]
[Date "2019.08.07"]
[Round "6.15"]
[White "Jun, Rudolf Jr."]
[Black "Gnojek, Petr"]
[Result "0-1"]
[ECO "B40"]
[WhiteElo "2200"]
[BlackElo "2246"]
[Annotator "NA"]
[PlyCount "80"]
[EventDate "2019.08.02"]
[EventType "swiss"]
[EventCountry "SVK"]
[SourceTitle "playchess.com"]
[Source "ChessBase"]
[SourceQuality "1"]
[TimeControl "40/5400+30:1800+30"]

1. e4 {[%emt 0:00:00]} c5 {[%emt 0:00:00]} 2. Nf3 {[%emt 0:00:00]} e6 {[%emt 0:00:00]} 3. c4 {[%emt 0:04:28]} Nc6 {[%emt 0:00:07]} 4. Nc3 {[%emt 0:00:51]} Nge7 {[%emt 0:00:25]} 5. Be2 {[%emt 0:02:14]} Nd4 {[%emt 0:00:36]} 6. O-O {[%emt 0:04:04]} Nec6 {[%emt 0:00:58]} 7. d3 {[%emt 0:05:26]} g6 {[%emt 0:00:53]} 8. Rb1 {[%emt 0:04:07]} Bg7 {[%emt 0:01:35]} 9. Nb5 {[%emt 0:03:00]} Nxb5 {[%emt 0:01:25]} 10. cxb5 {[%emt 0:00:06]} Nd4 {[%emt 0:00:03]} 11. b4 {[%emt 0:01:02]} d6 {[%emt 0:01:05]} 12. bxc5 {[%emt 0:02:36]} dxc5 {[%emt 0:00:05]} 13. Nxd4 {[%emt 0:00:13]} Bxd4 {[%emt 0:00:58]} 14. Bh6 {[%emt 0:03:25]} g5 {[%emt 0:02:47]} 15. h4 {[%emt 0:05:13]} gxh4 {[%emt 0:00:44]} 16. Qd2 {[%emt 0:04:28]} Rg8 {[%emt 0:00:53]} 17. Be3 {[%emt 0:08:51]} e5 {[%emt 0:02:05]} 18. Bxd4 {[%emt 0:08:14]} Qxd4 {[%emt 0:00:52]} 19. Kh2 {[%emt 0:01:15]} Bg4 {[%emt 0:01:16]} 20. Bxg4 {[%emt 0:03:43]} Rxg4 {[%emt 0:00:09]} 21. Qe2 {[%emt 0:02:59]} h5 {[%emt 0:04:53]} 22. b6 {[%emt 0:06:18]} a6 {[%emt 0:00:38]} 23. Qf3 {[%emt 0:00:13]} Ke7 {[%emt 0:02:04]} 24. Qf5 {[%emt 0:10:33]} Rag8 {[%emt 0:03:18]} 25. g3 {[%emt 0:02:24]} R4g5 {[%emt 0:04:46]} 26. Qf3 {[%emt 0:01:34]} R8g6 {[%emt 0:00:57]} 27. Rbd1 {[%emt 0:10:02]} Rf6 {[%emt 0:02:55]} 28. Qe2 {[%emt 0:01:29]} Rxf2+ {[%emt 0:01:47]} 29. Qxf2 {[%emt 0:00:58]} Qxf2+ {[%emt 0:00:06]} 30. Rxf2 {[%emt 0:00:07]} hxg3+ {[%emt 0:00:04]} 31. Kg2 {[%emt 0:00:08]} gxf2+ {[%emt 0:00:05]} 32. Kxf2 {[%emt 0:00:09]} Rg6 {[%emt 0:01:29]} 33. Rb1 {[%emt 0:00:06]} h4 {[%emt 0:00:08]} 34. Rc1 {[%emt 0:03:56]} Rxb6 {[%emt 0:03:07]} 35. Rxc5 {[%emt 0:00:05]} Rb2+ {[%emt 0:00:05]} 36. Kf3 {[%emt 0:00:06]} Kd6 {[%emt 0:00:19]} 37. Rd5+ {[%emt 0:00:49]} Ke6 {[%emt 0:00:07]} 38. Kg4 {[%emt 0:00:27]} Rxa2 {[%emt 0:02:51]} 39. Kxh4 {[%emt 0:00:21]} b5 {[%emt 0:00:35]} 40. Kg3 {[%emt 0:00:00]} b4 {[%emt 0:00:00]} 0-1